bitfinex-derivatives/quotes_SOLF0:USTF0_20241216
["timestamp","ask_amount","ask_price","bid_price","bid_amount"]
[1734379286320,8.48809724,218.64,218.59,2.2867]
[1734379286520,2.2865,218.62,218.59,2.2867]
[1734379288425,2.2868,218.59,218.55,4.8672]
[1734379292122,2.2868,218.59,218.56,10.77519724]
[1734379294029,2.2866,218.61,218.58,8.48809724]
[1734379294542,2.2865,218.63,218.58,8.48809724]
[1734379294726,2.2865,218.63,218.59,2.2867]
[1734379297532,2.2865,218.62,218.59,2.2867]
[1734379297725,8.48809724,218.63,218.56,8.48809724]
[1734379297928,2.2867,218.6,218.56,8.48809724]
[1734379298530,2.2867,218.6,218.56,10.77519724]
[1734379299125,2.2875,218.53,218.48,54.88832581]
[1734379299327,8.48809724,218.54,218.49,4.95755344]
[1734379299531,8.48809724,218.54,218.48,63.37642305]
[1734379299825,8.48809724,218.54,218.49,4.95760394]
[1734379300027,8.48809724,218.54,218.48,63.37642305]
[1734379300533,8.48809724,218.54,218.48,0.40417]
[1734379301642,2.2877,218.5,218.48,0.40417]
[1734379302029,2.2876,218.51,218.48,0.40417]
[1734379302929,2.2876,218.51,218.47,2.288]
[1734379307942,8.48809724,218.53,218.47,2.288]
[1734379307943,2.2877,218.5,218.47,2.288]
[1734379308239,2.2877,218.5,218.46,16.19999553]
[1734379308439,2.2876,218.51,218.48,8.48809724]
[1734379308844,8.48809724,218.53,218.47,2.2879]
[1734379311539,2.2877,218.51,218.47,2.2879]
[1734379312041,8.48809724,218.51,218.45,2.2881]
[1734379312547,2.2881,218.47,218.44,8.48809724]
[1734379313246,2.2881,218.47,218.44,10.77639724]
[1734379313642,2.58,218.51,218.44,8.48809724]
[1734379313838,2.58,218.51,218.46,8.48809724]
[1734379314240,2.2877,218.5,218.46,8.48809724]
[1734379315339,11.06809724,218.53,218.46,8.48809724]
[1734379315543,2.2878,218.49,218.46,8.48809724]
[1734379315745,2.2878,218.49,218.44,8.48809724]
[1734379317746,2.2878,218.49,218.43,5.45380799]
[1734379317747,8.48809724,218.51,218.46,8.48809724]
[1734379317948,2.2877,218.5,218.46,8.48809724]
[1734379320353,2.2877,218.5,218.48,8.48809724]
[1734379320752,2.2877,218.5,218.43,5.45380799]
[1734379320753,2.2877,218.5,218.46,8.48809724]
[1734379321553,2.2877,218.5,218.43,5.45380799]
[1734379321750,8.48809724,218.5,218.44,4.93829129]
[1734379321956,8.48809724,218.5,218.42,8.48809724]
[1734379322458,8.48809724,218.5,218.39,4.97644]
[1734379322459,8.48809724,218.46,218.39,4.97644]
[1734379322653,8.48809724,218.42,218.39,0.26994]
[1734379322854,2.2888,218.4,218.39,0.26994]
[1734379323156,10.77689724,218.4,218.39,0.26994]
[1734379324854,2.2891,218.37,218.32,16.3936185]
[1734379325353,2.2891,218.37,218.32,10.77769724]
[1734379325755,2.2891,218.37,218.32,8.48809724]
[1734379325951,2.2891,218.37,218.34,8.48809724]
[1734379326152,2.2891,218.37,218.32,8.48809724]
[1734379326349,2.2891,218.37,218.33,10.77759724]
[1734379327456,2.289,218.38,218.35,8.48809724]
[1734379327962,2.289,218.38,218.37,0.24756]
[1734379330161,8.48809724,218.4,218.37,8.73565724]
[1734379330162,2.2889,218.4,218.37,8.73565724]
[1734379330359,5.35946205,218.47,218.37,8.73565724]
[1734379330555,8.48809724,218.43,218.37,8.73565724]
[1734379331053,2.2887,218.41,218.37,11.02465724]
[1734379332159,8.48809724,218.41,218.37,0.24756]
[1734379333455,2.289,218.38,218.37,0.24756]
[1734379337481,8.48809724,218.39,218.29,2.2898]
[1734379337667,8.48809724,218.35,218.29,10.77789724]
[1734379337972,2.2895,218.34,218.29,10.77789724]
[1734379338163,8.48809724,218.35,218.29,10.77789724]
[1734379338674,2.2896,218.33,218.29,10.77789724]
[1734379339468,2.2896,218.33,218.29,16.29702413]
[1734379339768,13.73,218.29,217.93,50.99166123]
[1734379339979,8.48809724,218.1,218.02,5.5416255]
[1734379340169,2.2923,218.07,218.02,5.5416255]
[1734379340365,8.48809724,218.08,218.01,2.56]
[1734379340564,8.48809724,218.04,218.0,61.0]
[1734379340972,10.78089724,218.02,218.0,61.0]
[1734379341174,10.78089724,218.02,217.73,14.76427075]
[1734379341175,8.48809724,218.02,217.73,14.76427075]
[1734379341380,13.73,218.01,217.77,8.48809724]
[1734379341669,5.36403397,217.95,217.83,8.48809724]
[1734379341877,2.88,218.04,217.89,8.48809724]
[1734379342176,5.60980306,218.0,217.88,2.88]
[1734379342375,5.60980306,218.0,217.85,1.619]
[1734379342376,5.60980306,218.0,217.86,2.9749]
[1734379342567,13.34153563,217.98,217.86,5.8549]
[1734379342768,2.2935,217.95,217.86,5.8549]
[1734379342972,8.51344527,218.01,217.86,2.9749]
[1734379343167,8.51344527,218.01,217.85,1.619]
[1734379343168,13.34153563,217.99,217.85,1.619]
[1734379343371,8.51344527,218.01,217.85,1.619]
[1734379343372,2.2938,217.93,217.85,1.619]
[1734379343574,13.34153563,217.96,217.85,1.619]
[1734379344272,13.34153563,217.96,217.81,9.9747628]
[1734379344273,2.88,217.95,217.81,1.5014]
[1734379344475,13.34153563,217.93,217.81,1.5014]
[1734379345377,2.88,217.95,217.82,2.88]
[1734379345766,2.2937,217.93,217.83,2.2947]
[1734379346172,2.88,217.95,217.81,1.5014]
[1734379346370,13.34153563,217.93,217.81,1.5014]
[1734379346566,13.34153563,217.9,217.81,1.5014]
[1734379346765,13.34153563,217.9,217.79,1.5107]
[1734379346966,2.2945,217.85,217.79,5.48831856]
[1734379347168,1.6058,218.0,217.79,5.48831856]
[1734379347169,13.34153563,217.84,217.79,5.48831856]
[1734379347371,13.34153563,217.84,217.7,4.6754]
[1734379347571,13.34153563,217.87,217.72,13.34153563]
[1734379347775,15.63593563,217.87,217.76,2.2954]
[1734379347969,15.63593563,217.87,217.77,2.88]
[1734379348876,2.2945,217.86,217.77,2.88]
[1734379349273,13.34153563,217.84,217.77,2.88]
[1734379350074,13.34153563,217.84,217.73,7.68099552]
[1734379350075,13.34153563,217.84,217.74,2.88]
[1734379350475,13.34153563,217.87,217.74,2.88]
[1734379351475,13.34153563,217.87,217.78,2.2952]
[1734379351775,13.34153563,217.87,217.74,2.88]
[1734379351978,13.34153563,217.87,217.77,2.2953]
[1734379352178,13.34153563,217.87,217.74,2.88]
[1734379353083,13.34153563,217.9,217.76,13.34153563]
[1734379353481,2.2942,217.89,217.79,2.2951]
[1734379353775,2.2942,217.89,217.8,2.88]
[1734379354886,18.83201126,217.9,217.73,5.38529552]
[1734379355086,2.2945,217.85,217.77,2.2954]
[1734379355283,13.34153563,217.87,217.77,2.2954]
[1734379355487,15.63593563,217.87,217.79,2.2951]
[1734379356287,15.63593563,217.87,217.8,2.295]
[1734379357689,2.2944,217.87,217.8,2.295]
[1734379357884,2.2944,217.87,217.8,5.175]
[1734379358681,1.6058,218.0,217.82,2.2948]
[1734379358887,13.34153563,217.92,217.8,2.88]
[1734379359484,2.294,217.9,217.81,2.88]
[1734379359686,2.294,217.9,217.82,2.88]
[1734379359889,18.86100462,217.92,217.82,2.88]
[1734379360184,15.63563563,217.89,217.82,5.1748]
[1734379361391,15.63573563,217.89,217.82,2.2948]
[1734379361585,15.63573563,217.89,217.73,5.38529552]
[1734379361586,13.34153563,217.89,217.81,2.88]
[1734379361786,13.34153563,217.89,217.79,2.88]
[1734379362489,13.34153563,217.86,217.79,2.88]
[1734379362885,13.34153563,217.83,217.75,2.88]
[1734379363492,13.34153563,217.83,217.76,2.2955]
[1734379363790,13.34153563,217.83,217.73,5.38529552]
[1734379364193,13.34153563,217.83,217.77,2.2954]
[1734379365588,15.63633563,217.83,217.77,2.2954]
[1734379365787,13.34153563,217.83,217.77,2.2954]
[1734379367289,13.34153563,217.8,217.75,2.2955]
[1734379368589,13.34153563,217.8,217.7,2.88]
[1734379368786,13.34153563,217.8,217.61,4.7212]
[1734379368787,13.34153563,217.76,217.74,2.2957]
[1734379369091,13.34153563,217.76,217.66,5.54036211]
[1734379369289,13.34153563,217.76,217.67,2.2963]
[1734379369497,13.34153563,217.76,217.61,7.6012]
[1734379370387,2.2958,217.73,217.68,2.2963]
[1734379370887,13.34153563,217.76,217.64,5.38655504]
[1734379371092,2.2957,217.75,217.69,2.2962]
[1734379371888,13.34153563,217.76,217.69,2.2962]
[1734379371889,2.2957,217.74,217.69,2.2962]
[1734379372089,13.34153563,217.76,217.67,2.2964]
[1734379372290,13.34153563,217.76,217.64,5.38655504]
[1734379372992,2.2957,217.75,217.67,2.2964]
[1734379373190,13.34153563,217.76,217.64,5.38655504]
[1734379375287,2.2958,217.74,217.68,2.2963]
[1734379375696,2.2958,217.74,217.64,5.38655504]
[1734379376287,2.2958,217.74,217.61,4.7212]
[1734379376288,13.34153563,217.73,217.61,4.7212]
[1734379376490,13.34153563,217.73,217.61,10.33103318]
[1734379376692,2.9,217.72,217.61,10.33103318]
[1734379377289,2.2961,217.71,217.65,2.2966]
[1734379377489,2.9,217.72,217.65,2.2966]
[1734379377888,2.2961,217.7,217.61,10.33103318]
[1734379378091,13.34153563,217.73,217.67,2.2964]
[1734379378092,16.24153563,217.73,217.67,2.2964]
[1734379378389,13.34153563,217.7,217.51,2.9]
[1734379378591,13.34153563,217.7,217.55,16.34043563]
[1734379378898,13.34153563,217.7,217.58,5.61796319]
[1734379378899,2.2965,217.67,217.58,5.61796319]
[1734379379092,13.34153563,217.7,217.58,5.61796319]
[1734379379294,2.2964,217.68,217.63,2.2968]
[1734379379494,13.34153563,217.7,217.58,5.61796319]
[1734379379495,16.24153563,217.7,217.58,5.61796319]
[1734379379898,2.2962,217.69,217.64,2.2967]
[1734379381400,16.24153563,217.7,217.65,2.2965]
[1734379382299,18.53773563,217.7,217.65,2.2965]
[1734379382595,18.53773563,217.7,217.58,5.61796319]
[1734379382596,16.24153563,217.7,217.58,5.61796319]
[1734379383102,18.53773563,217.7,217.58,5.61796319]
[1734379383400,18.53773563,217.7,217.65,2.2965]
[1734379383596,18.53773563,217.7,217.58,5.61796319]
[1734379384593,13.34153563,217.73,217.58,18.95949882]
[1734379385202,2.296,217.71,217.66,2.2965]
[1734379385500,13.34153563,217.7,217.66,2.2965]
[1734379385998,13.34153563,217.75,217.61,16.24153563]
[1734379386198,2.9,217.77,217.64,13.34153563]
[1734379386399,2.9,217.77,217.65,1.5155]
[1734379386796,13.34153563,217.78,217.65,1.5155]
[1734379386797,94.2790803,217.79,217.66,1.5914]
[1734379387097,97.1790803,217.79,217.67,2.9]
[1734379387302,13.34153563,217.76,217.67,2.9]
[1734379387999,2.2959,217.73,217.68,2.2963]
[1734379388305,13.34153563,217.76,217.67,2.9]
[1734379388798,2.2958,217.74,217.69,2.2961]
[1734379389599,13.34153563,217.76,217.66,1.5914]
[1734379389901,13.34153563,217.76,217.71,2.2959]
[1734379389902,15.63713563,217.76,217.71,2.2959]
[1734379390493,13.34153563,217.76,217.72,2.2958]
[1734379390696,2.2955,217.77,217.72,2.2958]
[1734379390901,88.68469277,217.79,217.66,1.5914]
[1734379391302,13.34153563,217.76,217.66,1.5914]
[1734379391694,2.2958,217.73,217.67,2.2964]
[1734379391900,13.34153563,217.76,217.66,1.5914]
[1734379393004,2.2958,217.73,217.68,2.2963]
[1734379393499,13.34153563,217.76,217.68,2.2963]
[1734379394699,2.296,217.72,217.68,2.2963]
[1734379395096,75.34315714,217.79,217.66,2.2965]
[1734379395097,13.34153563,217.73,217.66,2.2965]
[1734379395301,13.34153563,217.73,217.6,2.9]
[1734379395701,13.34153563,217.73,217.59,17.74393563]
[1734379396298,2.2964,217.68,217.63,2.2969]
[1734379397099,2.2964,217.67,217.63,2.2969]
[1734379400401,2.2963,217.68,217.63,2.2968]
[1734379402909,8.56184357,217.7,217.63,2.2968]
[1734379403109,2.2965,217.67,217.63,2.2968]
[1734379404399,75.34315714,217.79,217.6,8.56184357]
[1734379404601,2.2964,217.68,217.63,2.2968]
[1734379405006,10.85864357,217.64,217.6,2.2972]
[1734379405209,8.56184357,217.62,217.59,1.5024]
[1734379405505,8.56184357,217.62,217.55,3.0643]
[1734379405705,10.85894357,217.62,217.58,2.2974]
[1734379406307,13.79,217.75,217.54,5.50629945]
[1734379406609,10.08079986,217.74,217.56,8.56184357]
[1734379406803,10.08079986,217.74,217.6,2.2972]
[1734379406804,8.56184357,217.65,217.6,2.2972]
[1734379407000,8.56184357,217.61,217.51,8.56184357]
[1734379407205,8.56184357,217.59,217.51,8.56184357]
[1734379408206,2.74,217.62,217.51,8.56184357]
[1734379408207,8.56184357,217.61,217.51,8.56184357]
[1734379408404,2.2973,217.59,217.53,2.2979]
[1734379408707,8.56184357,217.61,217.53,2.2979]
[1734379409107,8.56184357,217.61,217.53,10.85974357]
[1734379409305,8.56184357,217.59,217.5,11.30184357]
[1734379409508,8.56184357,217.59,217.51,2.2981]
[1734379410103,2.74,217.61,217.51,2.2981]
[1734379410104,2.2974,217.58,217.51,2.2981]
[1734379410412,16.13194309,217.61,217.51,2.2981]
[1734379410909,2.2975,217.57,217.51,2.2981]
[1734379411506,16.13194309,217.61,217.5,2.74]
[1734379412208,2.2976,217.56,217.5,2.74]
[1734379412507,13.39194309,217.58,217.47,3.0173]
[1734379412710,32.57904309,217.69,217.43,2.2989]
[1734379412711,2.2983,217.5,217.43,2.2989]
[1734379413003,2.74,217.57,217.44,18.78796645]
[1734379413204,2.74,217.57,217.45,4.3516]
[1734379413404,2.2976,217.56,217.49,2.2982]
[1734379414317,2.2974,217.59,217.52,2.298]
[1734379414510,13.39194309,217.61,217.47,13.39194309]
[1734379414708,13.39194309,217.61,217.46,1.5031]
[1734379414709,13.39194309,217.64,217.5,13.39194309]
[1734379414906,2.2971,217.62,217.5,13.39194309]
[1734379415304,2.2968,217.64,217.58,2.2974]
[1734379415512,13.39194309,217.67,217.58,2.74]
[1734379416510,2.2967,217.65,217.58,2.74]
[1734379417515,2.2967,217.65,217.6,2.2971]
[1734379417906,2.2968,217.64,217.58,2.74]
[1734379418114,2.2968,217.64,217.56,2.74]
[1734379418115,13.39194309,217.64,217.56,2.74]
[1734379418912,2.2971,217.61,217.56,5.0375]
[1734379419308,13.39194309,217.64,217.48,1.535]
[1734379419610,13.39194309,217.64,217.49,1.4794]
[1734379419611,13.39194309,217.58,217.49,1.4794]
[1734379420009,13.39194309,217.61,217.49,1.4794]
[1734379420218,13.39194309,217.61,217.5,2.74]
[1734379420415,2.2974,217.58,217.52,2.298]
[1734379420614,13.39194309,217.61,217.51,2.74]
[1734379421012,16.13194309,217.64,217.51,2.74]
[1734379421514,2.2972,217.6,217.55,2.2977]
[1734379423709,2.2971,217.62,217.53,13.39194309]
[1734379425511,2.2971,217.62,217.56,2.2976]
[1734379425818,2.2971,217.62,217.56,5.0376]
[1734379427212,2.2971,217.62,217.57,2.2975]
[1734379428022,2.2969,217.63,217.57,2.2975]
[1734379428214,13.39194309,217.66,217.57,2.2975]
[1734379429322,13.39194309,217.66,217.58,2.2974]
[1734379429915,2.297,217.63,217.58,2.2974]
[1734379430223,8.56562843,217.59,217.53,2.2979]
[1734379430721,4.1498,217.68,217.53,8.56562843]
[1734379430935,8.56562843,217.6,217.54,2.2978]
[1734379432525,2.2973,217.59,217.54,2.2978]
[1734379433417,4.1498,217.68,217.52,2.74]
[1734379433418,2.2975,217.57,217.52,2.2979]
[1734379434226,10.86302843,217.58,217.53,2.2979]
[1734379434422,8.56562843,217.6,217.53,8.56562843]
[1734379435626,2.2973,217.59,217.54,2.2978]
[1734379442631,2.2974,217.58,217.54,2.2978]
[1734379444423,8.56562843,217.58,217.49,1.4794]
[1734379444633,8.56562843,217.56,217.49,1.4794]
[1734379444936,8.56562843,217.56,217.49,4.2194]
[1734379445226,2.2978,217.54,217.49,4.2194]
[1734379445532,8.56562843,217.58,217.5,8.56562843]
[1734379445728,2.2977,217.56,217.51,2.2981]
[1734379445924,2.2977,217.56,217.52,8.56562843]
[1734379446133,8.56562843,217.59,217.52,8.56562843]
[1734379446433,2.2976,217.56,217.52,10.86362843]
[1734379447839,8.56562843,217.59,217.53,2.2979]
[1734379448138,2.2975,217.57,217.53,2.2979]
[1734379448630,2.2977,217.56,217.53,2.2979]
[1734379449837,8.56562843,217.57,217.5,2.2981]
[1734379450332,8.56562843,217.57,217.5,10.86372843]
[1734379450630,2.2977,217.55,217.5,10.86372843]
[1734379451337,2.2979,217.54,217.5,10.86372843]
[1734379452440,2.2981,217.52,217.49,1.4794]
[1734379452636,8.56562843,217.53,217.49,1.4794]
[1734379453429,2.2981,217.51,217.49,1.4794]
[1734379454442,2.2979,217.54,217.5,8.56562843]
[1734379454640,8.56562843,217.58,217.5,8.56562843]
[1734379454942,8.56562843,217.56,217.49,1.4794]
[1734379455641,2.2978,217.54,217.5,8.56562843]
[1734379455945,8.56562843,217.56,217.5,8.56562843]
[1734379456547,8.56562843,217.52,217.44,5.39602336]
[1734379456735,1.4098,217.68,217.51,8.56562843]
[1734379457042,8.56562843,217.59,217.51,8.56562843]
[1734379457633,2.2979,217.54,217.51,8.56562843]
[1734379458241,2.2977,217.55,217.51,8.56562843]
[1734379458745,2.2977,217.55,217.51,10.86372843]
[1734379460036,8.56562843,217.58,217.51,8.56562843]
[1734379460237,2.2979,217.54,217.51,8.56562843]
[1734379461643,2.2979,217.54,217.5,2.2982]
[1734379461644,1.4098,217.68,217.53,8.56562843]
[1734379461844,8.56562843,217.61,217.54,2.74]
[1734379462040,8.56562843,217.59,217.54,2.74]
[1734379462545,2.2977,217.55,217.54,2.74]
[1734379465737,1.4927,217.66,217.54,2.74]
[1734379465943,8.56562843,217.61,217.54,2.74]
[1734379466371,8.56562843,217.57,217.53,2.58]
[1734379466571,8.56562843,217.57,217.51,2.58]
[1734379467575,8.56562843,217.57,217.49,10.86392843]
[1734379467576,2.298,217.53,217.49,10.86392843]
[1734379467877,2.298,217.53,217.5,2.58]
[1734379469166,2.298,217.53,217.51,2.58]
[1734379469373,1.4927,217.66,217.51,11.14562843]
[1734379469566,8.56562843,217.58,217.51,11.14562843]
[1734379470063,1.4927,217.66,217.51,11.14562843]
[1734379470262,1.4927,217.66,217.51,8.56562843]
[1734379470263,8.56562843,217.58,217.51,8.56562843]
[1734379470457,8.56562843,217.58,217.52,2.58]
[1734379470859,2.2978,217.55,217.52,4.878]
[1734379472454,8.56562843,217.58,217.54,2.2977]
[1734379472649,8.56562843,217.58,217.52,2.58]
[1734379472846,2.2976,217.57,217.53,2.2978]
[1734379473553,2.2976,217.57,217.53,10.86342843]
[1734379473746,2.2976,217.57,217.53,8.56562843]
[1734379473949,2.2976,217.57,217.54,2.2978]
[1734379474458,8.56562843,217.58,217.52,2.58]
[1734379474653,8.56562843,217.58,217.49,8.56562843]
[1734379474950,8.56562843,217.58,217.5,2.58]
[1734379475551,8.56562843,217.56,217.45,4.6903]
[1734379475757,8.56562843,217.56,217.48,8.56562843]
[1734379476056,2.2981,217.52,217.48,10.86402843]
[1734379478591,2.2981,217.52,217.49,2.58]
[1734379478781,2.2981,217.52,217.5,8.56562843]
[1734379479490,2.2979,217.53,217.5,8.56562843]
[1734379480490,2.2979,217.53,217.49,11.14562843]
[1734379480784,2.58,217.62,217.49,11.14562843]
[1734379480785,2.2978,217.54,217.49,11.14562843]
[1734379481190,2.2978,217.54,217.51,8.56562843]
[1734379483987,2.2977,217.56,217.53,8.56562843]
[1734379484187,2.58,217.64,217.55,8.56562843]
[1734379484489,8.56562843,217.6,217.54,2.58]
[1734379485182,2.58,217.64,217.54,4.8778]
[1734379485378,8.56562843,217.61,217.54,4.8778]
[1734379485683,2.2975,217.58,217.54,4.8778]
[1734379488266,2.2975,217.58,217.54,2.58]
[1734379488463,2.2975,217.58,217.54,11.14562843]
[1734379489567,2.2975,217.58,217.54,13.44342843]
[1734379491367,8.56562843,217.58,217.54,2.58]
[1734379491573,8.56562843,217.58,217.53,2.58]
[1734379491764,8.56562843,217.6,217.52,11.14562843]
[1734379491969,2.2976,217.57,217.54,8.56562843]
[1734379492567,2.2976,217.56,217.54,8.56562843]
[1734379493158,2.2975,217.57,217.54,8.56562843]
[1734379494966,2.2977,217.55,217.54,8.56562843]
[1734379495170,2.2977,217.55,217.52,13.44362843]
[1734379496068,2.2977,217.55,217.54,8.56562843]
[1734379497062,2.2977,217.55,217.52,13.44362843]
[1734379497266,1.5629,217.65,217.51,11.14562843]
[1734379497267,8.56562843,217.58,217.51,11.14562843]
[1734379497671,8.56562843,217.58,217.51,2.58]
[1734379497870,8.56562843,217.58,217.51,11.14562843]
[1734379498263,8.56562843,217.58,217.5,2.58]
[1734379498572,8.56562843,217.58,217.51,8.56562843]
[1734379499164,2.2981,217.52,217.51,8.56562843]
[1734379501569,2.58,217.61,217.51,8.56562843]
[1734379501873,2.2979,217.54,217.53,8.56562843]
[1734379503470,2.298,217.52,217.51,13.95186855]
[1734379506075,8.17648062,217.64,217.51,5.38624012]
[1734379506282,8.17648062,217.64,217.54,8.56562843]
[1734379506283,8.56562843,217.61,217.54,8.56562843]
[1734379507577,2.2977,217.55,217.54,8.56562843]
[1734379510177,2.2976,217.56,217.54,8.56562843]
[1734379512481,2.2977,217.55,217.54,8.56562843]
[1734379514074,2.2976,217.56,217.54,8.56562843]
[1734379514670,2.2976,217.56,217.53,2.58]
[1734379514874,2.2976,217.56,217.54,8.56562843]
[1734379515372,2.2977,217.55,217.54,8.56562843]
[1734379517985,8.56562843,217.57,217.45,4.6903]
[1734379518281,8.56562843,217.57,217.49,8.56562843]
[1734379518578,8.56562843,217.57,217.51,8.56562843]
[1734379519083,2.2981,217.52,217.51,8.56562843]
[1734379523088,11.14562843,217.62,217.51,8.56562843]
[1734379523284,11.14562843,217.62,217.5,5.38082207]
[1734379523285,2.58,217.62,217.55,8.56562843]
[1734379523485,2.2977,217.56,217.55,8.56562843]
[1734379526192,8.56562843,217.61,217.53,2.2979]
[1734379526193,2.2978,217.55,217.53,2.2979]
[1734379526491,2.2978,217.55,217.53,10.86352843]
[1734379528791,2.2975,217.57,217.54,2.2978]
[1734379528985,2.2975,217.57,217.55,8.56562843]
[1734379529186,2.2976,217.56,217.55,8.56562843]
[1734379529590,8.56562843,217.63,217.55,8.56562843]
[1734379529889,2.2975,217.58,217.55,10.86332843]
[1734379530892,2.58,217.67,217.57,10.86312843]
[1734379531092,8.56562843,217.65,217.59,8.56562843]
[1734379531485,2.2972,217.6,217.59,8.56562843]
[1734379531683,2.2972,217.6,217.57,8.56562843]
[1734379534790,2.297,217.62,217.59,8.56562843]
[1734379534992,2.297,217.62,217.61,8.56562843]
[1734379535191,87.31480453,217.66,217.59,8.56562843]
[1734379535393,2.2972,217.6,217.59,8.56562843]
[1734379537194,2.2971,217.61,217.59,8.56562843]
[1734379546000,8.56562843,217.62,217.55,1.5968]
[1734379546196,8.56562843,217.62,217.54,11.14562843]
[1734379546597,2.2976,217.56,217.54,11.14562843]
[1734379546792,2.2976,217.56,217.5,5.57499887]
[1734379546793,8.56562843,217.62,217.5,5.57499887]
[1734379546991,8.56562843,217.62,217.51,2.58]
[1734379547199,8.56562843,217.62,217.54,8.56562843]
[1734379547408,11.14562843,217.63,217.56,8.56562843]
[1734379548402,2.2976,217.57,217.56,8.56562843]
[1734379548792,2.58,217.63,217.53,2.2979]
[1734379549000,2.58,217.63,217.5,5.57499887]
[1734379549001,8.56562843,217.59,217.5,5.57499887]
[1734379549200,2.2979,217.53,217.51,8.56562843]
[1734379549607,2.298,217.52,217.51,8.56562843]
[1734379549799,8.56562843,217.59,217.51,8.56562843]
[1734379550299,2.58,217.63,217.53,8.56562843]
[1734379550300,8.56562843,217.6,217.53,8.56562843]
[1734379551497,2.2978,217.54,217.53,8.56562843]
[1734379551696,8.56562843,217.6,217.53,8.56562843]
[1734379553002,2.2978,217.54,217.53,8.56562843]
[1734379553606,8.56562843,217.58,217.5,8.15499887]
[1734379553822,2.298,217.52,217.5,8.15499887]
[1734379554101,2.298,217.52,217.51,8.56562843]
[1734379554800,2.2979,217.54,217.51,8.56562843]
[1734379554997,8.56562843,217.58,217.51,8.56562843]
[1734379555502,2.298,217.52,217.44,4.5417]
[1734379555701,8.56562843,217.56,217.49,8.56562843]
[1734379555904,2.2978,217.54,217.49,8.56562843]
[1734379556107,8.56562843,217.56,217.49,8.56562843]
[1734379556703,2.2982,217.51,217.49,8.56562843]
[1734379557701,8.56562843,217.56,217.49,8.56562843]
[1734379558100,8.56562843,217.56,217.49,14.13146358]
[1734379558605,8.56562843,217.56,217.51,8.56562843]
[1734379559006,2.58,217.63,217.51,8.56562843]
[1734379559205,8.56562843,217.57,217.51,8.56562843]
[1734379559906,8.56562843,217.59,217.52,8.56562843]
[1734379560311,2.58,217.61,217.52,8.56562843]
[1734379560511,8.56562843,217.61,217.54,8.56562843]
[1734379561307,8.56562843,217.61,217.49,5.56583515]
[1734379561514,8.56562843,217.61,217.53,8.56562843]
[1734379563108,2.58,217.63,217.49,7.86413515]
[1734379563109,8.56562843,217.57,217.49,7.86413515]
[1734379563418,2.2982,217.52,217.5,8.56562843]
[1734379565312,2.298,217.53,217.5,8.56562843]
[1734379565517,2.298,217.53,217.52,8.56562843]
[1734379566532,2.2974,217.59,217.52,8.56562843]
[1734379566727,8.56562843,217.62,217.54,8.56562843]
[1734379567023,11.14562843,217.62,217.54,8.56562843]
[1734379567324,8.56562843,217.62,217.54,8.56562843]
[1734379567519,76.12177584,217.64,217.56,8.56562843]
[1734379567520,73.54177584,217.64,217.56,8.56562843]
[1734379567825,8.56562843,217.63,217.56,8.56562843]
[1734379568025,2.2973,217.59,217.58,8.56562843]
[1734379568815,73.54177584,217.64,217.58,8.56562843]
[1734379570516,82.10740427,217.64,217.58,8.56562843]
[1734379570715,2.2973,217.59,217.58,8.56562843]
[1734379572645,2.2972,217.6,217.58,8.56562843]
[1734379573022,2.2974,217.59,217.56,8.56562843]
[1734379573326,8.56562843,217.62,217.55,8.56562843]
[1734379574322,73.54177584,217.64,217.54,4.6589]
[1734379574323,2.2976,217.57,217.54,4.6589]
[1734379574517,73.54177584,217.64,217.56,8.56562843]
[1734379574713,73.54177584,217.64,217.59,8.56562843]
[1734379575122,73.54177584,217.64,217.61,8.56562843]
[1734379575445,73.54177584,217.64,217.59,8.56562843]
[1734379575650,2.2972,217.61,217.59,8.56562843]
[1734379579421,2.2972,217.6,217.59,8.56562843]
[1734379580019,73.54177584,217.64,217.54,4.6589]
[1734379580221,2.2975,217.57,217.54,6.9567]
[1734379580423,73.54177584,217.64,217.54,4.6589]
[1734379580829,2.2973,217.6,217.56,2.2976]
[1734379581426,73.54177584,217.64,217.56,2.2976]
[1734379581729,2.2974,217.59,217.56,2.2976]